[Event "Biel DQA Blitzn"]
[Site "Biel/Bienne, Switzerland"]
[Date "2022.07.17"]
[Round "2.2"]
[White "Ciarletta, Iris"]
[Black "Sumarriva Paulin, Laura"]
[Result "1/2-1/2"]
[TimeControl "3 min + 2 sec"]
[WhiteElo "1481"]
[BlackElo "1886"]

1. d4 {[%clk 00:03:02]} {[%emt 00:00:02]} d5 {[%clk 00:03:03]} {[%emt
00:00:01]} 2. c4 {[%clk 00:03:03]} e6 {[%clk 00:03:03]} {[%emt 00:00:02]} 3.
Nf3 {[%clk 00:03:04]} Nf6 {[%clk 00:03:04]} {[%emt 00:00:02]} 4. Nc3 {[%clk
00:03:04]} {[%emt 00:00:02]} dxc4 {[%clk 00:03:04]} {[%emt 00:00:02]} 5. e4
{[%clk 00:03:04]} {[%emt 00:00:03]} Bb4 {[%clk 00:03:04]} {[%emt 00:00:02]} 6.
Qc2 {[%clk 00:03:00]} {[%emt 00:00:05]} O-O {[%clk 00:03:03]} {[%emt 00:00:03]}
7. Bxc4 {[%clk 00:03:00]} {[%emt 00:00:03]} a6 {[%clk 00:03:02]} {[%emt
00:00:04]} 8. O-O {[%clk 00:02:59]} {[%emt 00:00:03]} b5 {[%clk 00:03:02]}
{[%emt 00:00:01]} 9. Be2 {[%clk 00:02:58]} {[%emt 00:00:03]} Bb7 {[%clk
00:03:03]} {[%emt 00:00:02]} 10. e5 {[%clk 00:02:57]} {[%emt 00:00:03]} Nd5
{[%clk 00:03:02]} {[%emt 00:00:03]} 11. Ne4 {[%clk 00:02:55]} {[%emt 00:00:04]}
Nd7 {[%clk 00:02:59]} {[%emt 00:00:05]} 12. Bd2 {[%clk 00:02:48]} {[%emt
00:00:09]} Be7 {[%clk 00:02:54]} {[%emt 00:00:06]} 13. Rfc1 {[%clk 00:02:44]}
{[%emt 00:00:06]} Rc8 {[%clk 00:02:55]} {[%emt 00:00:02]} 14. Qd1 {[%clk
00:02:39]} {[%emt 00:00:08]} c5 {[%clk 00:02:53]} {[%emt 00:00:03]} 15. Bc3
{[%clk 00:02:31]} {[%emt 00:00:09]} Nxc3 {[%clk 00:02:32]} {[%emt 00:00:23]} 16.
Nxc3 {[%clk 00:02:27]} {[%emt 00:00:07]} Nb6 {[%clk 00:02:26]} {[%emt
00:00:08]} 17. dxc5 {[%clk 00:02:24]} {[%emt 00:00:05]} Bxc5 {[%clk 00:02:25]}
{[%emt 00:00:02]} 18. a3 {[%clk 00:02:20]} {[%emt 00:00:06]} Nd5 {[%clk
00:02:16]} {[%emt 00:00:11]} 19. Nxd5 {[%clk 00:02:18]} {[%emt 00:00:04]} Bxd5
{[%clk 00:02:16]} {[%emt 00:00:02]} 20. b4 {[%clk 00:02:18]} {[%emt 00:00:02]}
Ba7 {[%clk 00:02:12]} {[%emt 00:00:06]} 21. Rxc8 {[%clk 00:02:17]} {[%emt
00:00:03]} Qxc8 {[%clk 00:02:12]} {[%emt 00:00:02]} 22. Rc1 {[%clk 00:02:17]}
{[%emt 00:00:02]} Qb7 {[%clk 00:02:12]} {[%emt 00:00:02]} 23. h3 {[%clk
00:01:58]} {[%emt 00:00:22]} h6 {[%clk 00:02:13]} {[%emt 00:00:02]} 24. Rc3
{[%clk 00:01:52]} {[%emt 00:00:08]} Qb6 {[%clk 00:02:07]} {[%emt 00:00:08]} 25.
Qf1 {[%clk 00:01:48]} {[%emt 00:00:06]} Rd8 {[%clk 00:01:52]} {[%emt 00:00:16]}
26. g3 {[%clk 00:01:32]} {[%emt 00:00:19]} Qb7 {[%clk 00:01:47]} {[%emt
00:00:07]} 27. Kg2 {[%clk 00:01:15]} {[%emt 00:00:19]} Bd4 {[%clk 00:01:45]}
{[%emt 00:00:04]} 28. Rd3 {[%clk 00:01:12]} {[%emt 00:00:05]} Bxe5 {[%clk
00:01:44]} {[%emt 00:00:03]} 29. Qd1 {[%clk 00:01:06]} {[%emt 00:00:07]} Bf6
{[%clk 00:01:38]} {[%emt 00:00:09]} 30. Kg1 {[%clk 00:00:57]} {[%emt 00:00:11]}
Rc8 {[%clk 00:01:35]} {[%emt 00:00:04]} 31. Ne1 {[%clk 00:00:53]} {[%emt
00:00:06]} Bc4 {[%clk 00:01:22]} {[%emt 00:00:16]} 32. Bf3 {[%clk 00:00:52]}
{[%emt 00:00:03]} Qc7 {[%clk 00:01:16]} {[%emt 00:00:07]} 33. Rd7 {[%clk
00:00:52]} {[%emt 00:00:03]} Qe5 {[%clk 00:01:15]} {[%emt 00:00:03]} 34. Bb7
{[%clk 00:00:45]} {[%emt 00:00:09]} Rf8 {[%clk 00:01:15]} {[%emt 00:00:01]} 35.
Bxa6 {[%clk 00:00:44]} {[%emt 00:00:03]} Qb2 {[%clk 00:00:54]} {[%emt
00:00:23]} 36. Bb7 {[%clk 00:00:34]} {[%emt 00:00:13]} Qxa3 {[%clk 00:00:53]}
{[%emt 00:00:03]} 37. Nc2 {[%clk 00:00:34]} {[%emt 00:00:02]} Qc3 {[%clk
00:00:51]} {[%emt 00:00:04]} 38. Be4 {[%clk 00:00:32]} {[%emt 00:00:04]} Bb3
{[%clk 00:00:47]} {[%emt 00:00:07]} 39. Qd3 {[%clk 00:00:30]} {[%emt 00:00:03]}
Qb2 {[%clk 00:00:37]} {[%emt 00:00:12]} 40. Ne3 {[%clk 00:00:27]} {[%emt
00:00:05]} Ba4 {[%clk 00:00:26]} {[%emt 00:00:13]} 41. Qb1 {[%clk 00:00:27]}
{[%emt 00:00:02]} Qc3 {[%clk 00:00:25]} {[%emt 00:00:03]} 42. Rd3 {[%clk
00:00:25]} {[%emt 00:00:04]} Qc7 {[%clk 00:00:24]} {[%emt 00:00:03]} 43. Rd2
{[%clk 00:00:21]} {[%emt 00:00:07]} Qe5 {[%clk 00:00:24]} {[%emt 00:00:02]} 44.
Ng4 {[%clk 00:00:20]} {[%emt 00:00:02]} Qc3 {[%clk 00:00:22]} {[%emt 00:00:03]}
45. Nxf6+ {[%clk 00:00:21]} {[%emt 00:00:02]} Qxf6 {[%clk 00:00:21]} {[%emt
00:00:03]} 46. Rd6 {[%clk 00:00:21]} {[%emt 00:00:02]} Qe5 {[%clk 00:00:20]}
{[%emt 00:00:03]} 47. Rc6 {[%clk 00:00:21]} {[%emt 00:00:01]} Rd8 {[%clk
00:00:20]} {[%emt 00:00:03]} 48. Rc1 {[%clk 00:00:18]} {[%emt 00:00:05]} g6
{[%clk 00:00:15]} {[%emt 00:00:07]} 49. Re1 {[%clk 00:00:16]} {[%emt 00:00:04]}
Qf6 {[%clk 00:00:15]} {[%emt 00:00:03]} 50. Bg2 {[%clk 00:00:13]} {[%emt
00:00:05]} Rd2 {[%clk 00:00:12]} {[%emt 00:00:05]} 51. Rf1 {[%clk 00:00:14]}
{[%emt 00:00:01]} Bc2 {[%clk 00:00:11]} {[%emt 00:00:02]} 52. Qe1 {[%clk
00:00:14]} {[%emt 00:00:02]} Rd8 {[%clk 00:00:11]} {[%emt 00:00:02]} 53. Qc1
{[%clk 00:00:13]} {[%emt 00:00:03]} Bb3 {[%clk 00:00:12]} {[%emt 00:00:02]} 54.
Be4 {[%clk 00:00:14]} {[%emt 00:00:02]} Bc4 {[%clk 00:00:13]} 55. Re1 {[%clk
00:00:14]} {[%emt 00:00:02]} Kg7 {[%clk 00:00:13]} {[%emt 00:00:02]} 56. Qe3
{[%clk 00:00:14]} {[%emt 00:00:01]} Rd7 {[%clk 00:00:10]} {[%emt 00:00:05]} 57.
Rc1 {[%clk 00:00:15]} {[%emt 00:00:02]} Rd8 {[%clk 00:00:10]} {[%emt 00:00:01]}
58. Bg2 {[%clk 00:00:16]} {[%emt 00:00:01]} Rd4 {[%clk 00:00:10]} {[%emt
00:00:02]} 59. h4 {[%clk 00:00:16]} {[%emt 00:00:02]} Rd3 {[%clk 00:00:10]}
{[%emt 00:00:02]} 60. Qe4 {[%clk 00:00:15]} {[%emt 00:00:02]} Rd2 {[%clk
00:00:11]} {[%emt 00:00:02]} 61. Qe3 {[%clk 00:00:16]} {[%emt 00:00:01]} Rb2
{[%clk 00:00:11]} {[%emt 00:00:02]} 62. Qc5 {[%clk 00:00:12]} {[%emt 00:00:06]}
Re2 {[%clk 00:00:09]} {[%emt 00:00:04]} 63. Bf1 {[%clk 00:00:12]} {[%emt
00:00:02]} Rb2 {[%clk 00:00:09]} {[%emt 00:00:02]} 64. Bxc4 {[%clk 00:00:13]}
{[%emt 00:00:02]} bxc4 {[%clk 00:00:09]} {[%emt 00:00:02]} 65. Rxc4 {[%clk
00:00:13]} {[%emt 00:00:02]} Rb1+ {[%clk 00:00:08]} {[%emt 00:00:03]} 66. Rc1
{[%clk 00:00:14]} {[%emt 00:00:01]} Rb2 {[%clk 00:00:09]} {[%emt 00:00:01]} 67.
Qc3 {[%clk 00:00:14]} {[%emt 00:00:02]} Qxc3 {[%clk 00:00:09]} {[%emt
00:00:02]} 68. Rxc3 {[%clk 00:00:16]} {[%emt 00:00:01]} Rxb4 {[%clk 00:00:10]}
69. Kg2 {[%clk 00:00:17]} Rb2 {[%clk 00:00:11]} 70. Kf3 {[%clk 00:00:17]}
{[%emt 00:00:02]} Rb4 {[%clk 00:00:12]} {[%emt 00:00:01]} 71. Ke3 {[%clk
00:00:18]} {[%emt 00:00:01]} Kf6 {[%clk 00:00:13]} 72. f3 {[%clk 00:00:19]} Ra4
{[%clk 00:00:13]} {[%emt 00:00:02]} 73. g4 {[%clk 00:00:20]} Rb4 {[%clk
00:00:11]} {[%emt 00:00:04]} 74. f4 {[%clk 00:00:20]} {[%emt 00:00:02]} Ra4
{[%clk 00:00:11]} {[%emt 00:00:02]} 75. g5+ {[%clk 00:00:20]} {[%emt 00:00:01]}
hxg5 {[%clk 00:00:12]} {[%emt 00:00:02]} 76. hxg5+ {[%clk 00:00:21]} {[%emt
00:00:01]} Kg7 {[%clk 00:00:10]} {[%emt 00:00:04]} 77. Kf3 {[%clk 00:00:21]}
{[%emt 00:00:02]} Rb4 {[%clk 00:00:08]} {[%emt 00:00:04]} 78. Rc7 {[%clk
00:00:20]} {[%emt 00:00:03]} Ra4 {[%clk 00:00:09]} {[%emt 00:00:02]} 79. Ke3
{[%clk 00:00:20]} {[%emt 00:00:02]} Rb4 {[%clk 00:00:09]} {[%emt 00:00:01]} 80.
Rd7 {[%clk 00:00:21]} {[%emt 00:00:01]} Rc4 {[%clk 00:00:09]} {[%emt 00:00:02]}
81. Rd6 {[%clk 00:00:19]} {[%emt 00:00:04]} Rb4 {[%clk 00:00:08]} {[%emt
00:00:03]} 82. Kf3 {[%clk 00:00:18]} {[%emt 00:00:03]} Rc4 {[%clk 00:00:06]}
{[%emt 00:00:04]} 83. Kg4 {[%clk 00:00:17]} {[%emt 00:00:03]} e5 {[%clk
00:00:05]} {[%emt 00:00:03]} 84. Kg3 {[%clk 00:00:16]} {[%emt 00:00:04]} Rxf4
{[%clk 00:00:06]} {[%emt 00:00:02]} 85. Rd3 {[%clk 00:00:12]} {[%emt 00:00:04]}
Rf5 {[%clk 00:00:07]} {[%emt 00:00:02]} 86. Kg4 {[%clk 00:00:13]} Kf8 {[%clk
00:00:07]} {[%emt 00:00:03]} 87. Rd7 {[%clk 00:00:11]} {[%emt 00:00:03]} Ke8
{[%clk 00:00:07]} {[%emt 00:00:02]} 88. Ra7 {[%clk 00:00:12]} Kf8 {[%clk
00:00:05]} {[%emt 00:00:04]} 89. Ra5 {[%clk 00:00:11]} {[%emt 00:00:02]} f6
{[%clk 00:00:06]} {[%emt 00:00:02]} 90. gxf6 {[%clk 00:00:12]} {[%emt
00:00:02]} Rxf6 {[%clk 00:00:06]} {[%emt 00:00:01]} 91. Rxe5 {[%clk 00:00:13]}
Kg7 {[%clk 00:00:07]} {[%emt 00:00:01]} 92. Re7+ {[%clk 00:00:14]} {[%emt
00:00:01]} Kh6 {[%clk 00:00:07]} {[%emt 00:00:01]} 93. Re8 {[%clk 00:00:13]}
{[%emt 00:00:03]} Ra6 {[%clk 00:00:05]} {[%emt 00:00:04]} 94. Re7 {[%clk
00:00:12]} {[%emt 00:00:03]} Ra4+ {[%clk 00:00:06]} {[%emt 00:00:02]} 95. Kg3
{[%clk 00:00:13]} {[%emt 00:00:02]} Kh5 {[%clk 00:00:06]} {[%emt 00:00:01]} 96.
Rh7+ {[%clk 00:00:13]} {[%emt 00:00:02]} Kg5 {[%clk 00:00:07]} 97. Rb7 {[%clk
00:00:14]} {[%emt 00:00:02]} Ra3+ {[%clk 00:00:08]} 98. Kg2 {[%clk 00:00:15]}
Kh5 {[%clk 00:00:08]} {[%emt 00:00:02]} 99. Rh7+ {[%clk 00:00:16]} {[%emt
00:00:02]} Kg4 {[%clk 00:00:09]} {[%emt 00:00:01]} 100. Rb7 {[%clk 00:00:13]}
{[%emt 00:00:04]} Ra2+ {[%clk 00:00:10]} {[%emt 00:00:03]} 101. Kg1 {[%clk
00:00:14]} g5 {[%clk 00:00:11]} 102. Rb3 {[%clk 00:00:14]} {[%emt 00:00:01]}
Kh4 {[%clk 00:00:11]} {[%emt 00:00:01]} 103. Kh1 {[%clk 00:00:13]} {[%emt
00:00:04]} g4 {[%clk 00:00:12]} {[%emt 00:00:01]} 104. Kg1 {[%clk 00:00:12]}
{[%emt 00:00:02]} g3 {[%clk 00:00:13]} {[%emt 00:00:01]} 105. Rb8 {[%clk
00:00:12]} {[%emt 00:00:02]} Ra1+ {[%clk 00:00:07]} {[%emt 00:00:09]} 106. Kg2
{[%clk 00:00:13]} Ra2+ {[%clk 00:00:08]} 107. Kg1 {[%clk 00:00:14]} Ra5 {[%clk
00:00:06]} {[%emt 00:00:04]} 108. Rh8+ {[%clk 00:00:14]} {[%emt 00:00:02]} Kg4
{[%clk 00:00:06]} {[%emt 00:00:01]} 109. Rg8+ {[%clk 00:00:15]} {[%emt
00:00:01]} Kf3 {[%clk 00:00:07]} {[%emt 00:00:01]} 110. Rf8+ {[%clk 00:00:16]}
Kg4 {[%clk 00:00:07]} {[%emt 00:00:02]} 111. Rg8+ {[%clk 00:00:17]} {[%emt
00:00:01]} Rg5 {[%clk 00:00:07]} {[%emt 00:00:01]} 112. Rf8 {[%clk 00:00:17]}
{[%emt 00:00:02]} Kh3 {[%clk 00:00:06]} {[%emt 00:00:03]} 113. Rh8+ {[%clk
00:00:18]} {[%emt 00:00:01]} Kg4 {[%clk 00:00:06]} {[%emt 00:00:01]} 114. Kg2
{[%clk 00:00:18]} {[%emt 00:00:03]} Rg7 {[%clk 00:00:06]} {[%emt 00:00:02]} 115.
Rf8 {[%clk 00:00:18]} {[%emt 00:00:02]} Kh4 {[%clk 00:00:05]} {[%emt 00:00:03]}
116. Rf4+ {[%clk 00:00:18]} {[%emt 00:00:02]} Kg5 {[%clk 00:00:04]} {[%emt
00:00:02]} 117. Rf3 {[%clk 00:00:19]} {[%emt 00:00:02]} Kh4 {[%clk 00:00:05]}
{[%emt 00:00:01]} 118. Rf4+ {[%clk 00:00:20]} Rg4 {[%clk 00:00:05]} {[%emt
00:00:01]} 119. Rf8 {[%clk 00:00:21]} {[%emt 00:00:01]} Rg6 {[%clk 00:00:05]}
{[%emt 00:00:02]} 120. Rf4+ {[%clk 00:00:20]} {[%emt 00:00:03]} Rg4 {[%clk
00:00:06]} {[%emt 00:00:01]} 121. Rf8 {[%clk 00:00:21]} {[%emt 00:00:01]} Rg6
{[%clk 00:00:07]} {[%emt 00:00:01]} 1/2-1/2

[Event "Biel DQA Blitzn"]
[Site "Biel/Bienne, Switzerland"]
[Date "2022.07.17"]
[Round "2.3"]
[White "Tamrazyan, Gohar"]
[Black "Keymer, Cecilia"]
[Result "1-0"]
[TimeControl "3 min + 2 sec"]
[WhiteElo "1733"]
[BlackElo "1652"]

1. d4 {[%clk 00:03:03]} d5 {[%clk 00:03:04]} 2. Nc3 {[%clk 00:03:04]} {[%emt
00:00:02]} Nf6 {[%clk 00:03:05]} 3. Bf4 {[%clk 00:03:04]} {[%emt 00:00:02]} Bf5
{[%clk 00:03:06]} {[%emt 00:00:01]} 4. e3 {[%clk 00:03:05]} e6 {[%clk
00:03:03]} {[%emt 00:00:06]} 5. Bd3 {[%clk 00:03:06]} Bxd3 {[%clk 00:03:01]}
{[%emt 00:00:04]} 6. cxd3 {[%clk 00:03:07]} {[%emt 00:00:01]} Bd6 {[%clk
00:03:03]} 7. Nge2 {[%clk 00:03:05]} {[%emt 00:00:05]} Nc6 {[%clk 00:03:00]}
{[%emt 00:00:05]} 8. O-O {[%clk 00:03:02]} {[%emt 00:00:04]} O-O {[%emt
00:00:03]} 9. a3 {[%clk 00:02:55]} {[%emt 00:00:08]} a6 {[%clk 00:03:02]}
{[%emt 00:00:01]} 10. Rc1 {[%clk 00:02:56]} {[%emt 00:00:01]} Bxf4 {[%clk
00:03:00]} {[%emt 00:00:04]} 11. Nxf4 {[%clk 00:02:57]} {[%emt 00:00:01]} e5
{[%clk 00:02:57]} {[%emt 00:00:05]} 12. dxe5 {[%clk 00:02:55]} {[%emt
00:00:04]} Nxe5 {[%clk 00:02:58]} {[%emt 00:00:01]} 13. Qb3 {[%clk 00:02:35]}
{[%emt 00:00:21]} c6 {[%clk 00:02:41]} {[%emt 00:00:19]} 14. e4 {[%clk
00:02:23]} {[%emt 00:00:14]} d4 {[%clk 00:02:37]} {[%emt 00:00:06]} 15. Nce2
{[%clk 00:02:23]} {[%emt 00:00:03]} Qd7 {[%clk 00:02:34]} {[%emt 00:00:05]} 16.
Qb4 {[%clk 00:02:20]} {[%emt 00:00:05]} Rad8 {[%clk 00:02:32]} {[%emt
00:00:04]} 17. Rfd1 {[%clk 00:02:11]} {[%emt 00:00:11]} Qd6 {[%clk 00:02:20]}
{[%emt 00:00:14]} 18. Qxb7 {[%clk 00:02:01]} {[%emt 00:00:13]} Rb8 {[%clk
00:02:15]} {[%emt 00:00:07]} 19. Qa7 {[%clk 00:01:52]} {[%emt 00:00:11]} Rxb2
{[%clk 00:02:09]} {[%emt 00:00:08]} 20. Nxd4 {[%clk 00:01:48]} {[%emt
00:00:06]} Ned7 {[%clk 00:01:43]} {[%emt 00:00:28]} 21. g3 {[%clk 00:01:30]}
{[%emt 00:00:19]} Nc5 {[%clk 00:01:44]} {[%emt 00:00:01]} 22. Qxc5 {[%clk
00:01:30]} {[%emt 00:00:02]} Rc8 {[%clk 00:01:42]} {[%emt 00:00:03]} 23. Qxd6
{[%clk 00:01:31]} {[%emt 00:00:02]} 1-0

[Event "Biel DQA Blitzn"]
[Site "Biel/Bienne, Switzerland"]
[Date "2022.07.17"]
[Round "2.4"]
[White "Zhuang, Yongzhe"]
[Black "Avilova, Yulia"]
[Result "0-1"]
[TimeControl "3 min + 2 sec"]
[WhiteElo "1681"]
[BlackElo "1597"]

1. e4 {[%clk 00:03:02]} c5 {[%clk 00:03:03]} {[%emt 00:00:01]} 2. c3 {[%clk
00:03:03]} d6 {[%clk 00:03:05]} 3. d4 {[%clk 00:03:04]} cxd4 {[%clk 00:03:05]}
{[%emt 00:00:03]} 4. cxd4 {[%clk 00:03:04]} {[%emt 00:00:02]} Nf6 {[%clk
00:03:06]} 5. Nc3 {[%clk 00:03:05]} {[%emt 00:00:01]} a6 {[%clk 00:03:08]} 6.
a3 {[%clk 00:03:05]} {[%emt 00:00:03]} e6 {[%clk 00:03:09]} 7. Nf3 {[%clk
00:03:05]} Qc7 {[%clk 00:03:03]} {[%emt 00:00:08]} 8. Bd3 {[%clk 00:03:05]}
{[%emt 00:00:02]} Be7 {[%clk 00:03:04]} {[%emt 00:00:01]} 9. O-O {[%clk
00:03:04]} {[%emt 00:00:02]} Nc6 {[%clk 00:03:05]} {[%emt 00:00:01]} 10. Qe2
{[%clk 00:03:04]} {[%emt 00:00:03]} e5 {[%clk 00:03:01]} {[%emt 00:00:05]} 11.
Be3 {[%clk 00:02:51]} {[%emt 00:00:15]} O-O {[%clk 00:02:56]} {[%emt 00:00:07]}
12. d5 {[%clk 00:02:51]} {[%emt 00:00:02]} Nb8 {[%clk 00:02:54]} {[%emt
00:00:04]} 13. Rac1 {[%clk 00:02:52]} {[%emt 00:00:01]} Qd8 {[%clk 00:02:52]}
{[%emt 00:00:04]} 14. h3 {[%clk 00:02:52]} {[%emt 00:00:02]} Nbd7 {[%clk
00:02:48]} {[%emt 00:00:06]} 15. b4 {[%clk 00:02:51]} {[%emt 00:00:03]} b6
{[%clk 00:02:45]} {[%emt 00:00:05]} 16. Nd2 {[%clk 00:02:45]} {[%emt 00:00:07]}
Bb7 {[%clk 00:02:46]} {[%emt 00:00:01]} 17. f4 {[%clk 00:02:39]} {[%emt
00:00:08]} Rc8 {[%clk 00:02:41]} {[%emt 00:00:07]} 18. Bxa6 {[%clk 00:02:32]}
{[%emt 00:00:09]} Bxa6 {[%clk 00:02:40]} {[%emt 00:00:03]} 19. Qxa6 {[%clk
00:02:32]} {[%emt 00:00:02]} Ra8 {[%clk 00:02:39]} {[%emt 00:00:03]} 20. Qe2
{[%clk 00:02:23]} {[%emt 00:00:11]} Rxa3 {[%clk 00:02:39]} {[%emt 00:00:02]} 21.
Nb5 {[%clk 00:02:24]} {[%emt 00:00:01]} Ra4 {[%clk 00:02:28]} {[%emt 00:00:12]}
22. Qc4 {[%clk 00:02:08]} {[%emt 00:00:19]} Nc5 {[%clk 00:02:12]} {[%emt
00:00:17]} 23. Ra1 {[%clk 00:02:00]} {[%emt 00:00:10]} Rxa1 {[%clk 00:02:07]}
{[%emt 00:00:08]} 24. Rxa1 {[%clk 00:02:01]} {[%emt 00:00:01]} Nb7 {[%clk
00:01:58]} {[%emt 00:00:10]} 25. Ra7 {[%clk 00:01:57]} {[%emt 00:00:07]} Qb8
{[%clk 00:01:57]} {[%emt 00:00:03]} 26. Bxb6 {[%clk 00:01:52]} {[%emt
00:00:06]} Rc8 {[%clk 00:01:50]} {[%emt 00:00:10]} 27. Bc7 {[%clk 00:01:44]}
{[%emt 00:00:10]} Rxc7 {[%clk 00:01:41]} {[%emt 00:00:11]} 28. Qxc7 {[%clk
00:01:44]} {[%emt 00:00:02]} Qxc7 {[%clk 00:01:39]} {[%emt 00:00:04]} 29. Nxc7
{[%clk 00:01:44]} {[%emt 00:00:01]} Nd8 {[%clk 00:01:34]} {[%emt 00:00:07]} 30.
fxe5 {[%clk 00:01:42]} {[%emt 00:00:04]} dxe5 {[%clk 00:01:34]} {[%emt
00:00:02]} 31. b5 {[%clk 00:01:42]} {[%emt 00:00:02]} Bc5+ {[%emt 00:00:05]} 32.
Kh2 {[%clk 00:01:39]} {[%emt 00:00:04]} Bxa7 {[%clk 00:01:33]} {[%emt
00:00:01]} 33. Kg3 {[%clk 00:01:36]} {[%emt 00:00:04]} Nb7 {[%clk 00:01:31]}
{[%emt 00:00:05]} 34. Kf3 {[%clk 00:01:30]} {[%emt 00:00:08]} Nd6 {[%clk
00:01:32]} {[%emt 00:00:01]} 35. Na8 {[%clk 00:01:28]} {[%emt 00:00:04]} Nxb5
{[%clk 00:01:30]} {[%emt 00:00:05]} 36. Nc4 {[%clk 00:01:27]} {[%emt 00:00:03]}
Nd4+ {[%clk 00:01:27]} {[%emt 00:00:04]} 37. Kg3 {[%clk 00:01:25]} {[%emt
00:00:04]} Nxe4+ {[%clk 00:01:28]} {[%emt 00:00:02]} 38. Kg4 {[%clk 00:01:24]}
Nf6+ {[%clk 00:01:29]} {[%emt 00:00:03]} 39. Kg3 {[%clk 00:01:25]} {[%emt
00:00:01]} Nxd5 {[%clk 00:01:28]} {[%emt 00:00:03]} 40. Nd6 {[%clk 00:01:21]}
{[%emt 00:00:05]} Bb8 {[%clk 00:01:27]} {[%emt 00:00:03]} 41. Ne4 {[%clk
00:01:19]} {[%emt 00:00:04]} f5 {[%clk 00:01:27]} {[%emt 00:00:02]} 42. Ng5
{[%clk 00:01:17]} {[%emt 00:00:02]} e4+ {[%clk 00:01:27]} {[%emt 00:00:04]} 43.
Kf2 {[%clk 00:01:17]} {[%emt 00:00:02]} e3+ {[%clk 00:01:24]} {[%emt 00:00:05]}
44. Ke1 {[%clk 00:01:17]} {[%emt 00:00:01]} Nc3 {[%clk 00:01:15]} {[%emt
00:00:11]} 45. Nf3 {[%clk 00:01:16]} {[%emt 00:00:03]} Nc2+ {[%clk 00:01:14]}
{[%emt 00:00:04]} 46. Kf1 {[%clk 00:01:16]} {[%emt 00:00:02]} e2+ {[%clk
00:01:12]} {[%emt 00:00:05]} 0-1

[ePGN "0.1;DGT LiveChess/2.2.5"]

[Event "Biel DQA Blitzn"]
[Site "Biel/Bienne, Switzerland"]
[Date "2022.07.17"]
[Round "3.1"]
[White "Avilova, Yulia"]
[Black "Cornileau, Juliette"]
[Result "1/2-1/2"]
[TimeControl "3 min + 2 sec"]
[WhiteElo "1597"]
[BlackElo "1653"]

1. Nf3 {[%clk 00:03:02]} Nf6 {[%clk 00:03:03]} {[%emt 00:00:03]} 2. c4 {[%clk
00:03:03]} {[%emt 00:00:01]} c5 {[%clk 00:03:01]} {[%emt 00:00:04]} 3. e3
{[%clk 00:03:04]} {[%emt 00:00:01]} d5 {[%clk 00:02:56]} {[%emt 00:00:07]} 4.
cxd5 {[%clk 00:03:04]} {[%emt 00:00:02]} Nxd5 {[%clk 00:02:56]} {[%emt
00:00:02]} 5. e4 {[%clk 00:03:03]} {[%emt 00:00:03]} Nf6 {[%clk 00:02:52]}
{[%emt 00:00:06]} 6. e5 {[%clk 00:03:03]} {[%emt 00:00:02]} Nd5 {[%clk
00:02:53]} {[%emt 00:00:01]} 7. Nc3 {[%clk 00:03:04]} {[%emt 00:00:02]} Nc6
{[%clk 00:02:48]} {[%emt 00:00:07]} 8. Bc4 {[%clk 00:03:04]} {[%emt 00:00:01]}
e6 {[%clk 00:02:16]} {[%emt 00:00:34]} 9. Qb3 {[%clk 00:02:57]} {[%emt
00:00:09]} Nb6 {[%clk 00:02:12]} {[%emt 00:00:07]} 10. Bb5 {[%clk 00:02:57]}
{[%emt 00:00:02]} Bd7 {[%clk 00:01:59]} {[%emt 00:00:15]} 11. O-O {[%clk
00:02:44]} {[%emt 00:00:15]} Be7 {[%clk 00:01:59]} {[%emt 00:00:02]} 12. Rd1
{[%clk 00:02:36]} {[%emt 00:00:10]} O-O {[%clk 00:01:48]} {[%emt 00:00:13]} 13.
Bxc6 {[%clk 00:02:29]} {[%emt 00:00:09]} Bxc6 {[%clk 00:01:49]} {[%emt
00:00:02]} 14. Ne2 {[%clk 00:02:24]} {[%emt 00:00:07]} c4 {[%clk 00:01:47]}
{[%emt 00:00:04]} 15. Qc3 {[%clk 00:02:19]} {[%emt 00:00:06]} Qd3 {[%clk
00:01:23]} {[%emt 00:00:26]} 16. Qxd3 {[%clk 00:01:55]} {[%emt 00:00:27]} cxd3
{[%clk 00:01:24]} {[%emt 00:00:01]} 17. Ned4 {[%clk 00:01:55]} {[%emt
00:00:01]} Bxf3 {[%clk 00:01:14]} {[%emt 00:00:12]} 18. Nxf3 {[%clk 00:01:56]}
{[%emt 00:00:01]} Rac8 {[%clk 00:00:54]} {[%emt 00:00:22]} 19. b3 {[%clk
00:01:57]} {[%emt 00:00:01]} f6 {[%clk 00:00:32]} {[%emt 00:00:24]} 20. Bb2
{[%clk 00:01:52]} {[%emt 00:00:07]} Rc2 {[%clk 00:00:27]} {[%emt 00:00:06]} 21.
Bc3 {[%clk 00:01:53]} {[%emt 00:00:01]} Nd5 {[%clk 00:00:23]} {[%emt 00:00:06]}
22. Nd4 {[%clk 00:01:33]} {[%emt 00:00:22]} Nxc3 {[%clk 00:00:23]} {[%emt
00:00:03]} 23. dxc3 {[%clk 00:01:34]} Rxc3 {[%clk 00:00:21]} {[%emt 00:00:03]}
24. Nxe6 {[%clk 00:01:34]} {[%emt 00:00:02]} Rfc8 {[%clk 00:00:18]} {[%emt
00:00:05]} 25. f4 {[%clk 00:01:22]} {[%emt 00:00:14]} fxe5 {[%clk 00:00:13]}
{[%emt 00:00:07]} 26. fxe5 {[%clk 00:01:23]} Bc5+ {[%clk 00:00:08]} {[%emt
00:00:08]} 27. Nxc5 {[%clk 00:01:24]} {[%emt 00:00:01]} R8xc5 {[%clk 00:00:09]}
{[%emt 00:00:01]} 28. e6 {[%clk 00:01:24]} {[%emt 00:00:01]} Re5 {[%clk
00:00:10]} {[%emt 00:00:01]} 29. Rd2 {[%clk 00:01:23]} {[%emt 00:00:04]} Rxe6
{[%clk 00:00:08]} {[%emt 00:00:04]} 30. Rad1 {[%clk 00:01:24]} Re3 {[%clk
00:00:05]} {[%emt 00:00:07]} 31. Kf2 {[%clk 00:01:23]} {[%emt 00:00:02]} Re2+
{[%clk 00:00:05]} {[%emt 00:00:02]} 32. Kf1 {[%clk 00:01:15]} {[%emt 00:00:10]}
Rc2 {[%clk 00:00:05]} {[%emt 00:00:03]} 33. Rxd3 {[%clk 00:00:54]} {[%emt
00:00:23]} Rxg2 {[%clk 00:00:05]} {[%emt 00:00:02]} 34. Rd8+ {[%clk 00:00:53]}
{[%emt 00:00:02]} Kf7 {[%clk 00:00:06]} 35. R1d7+ {[%clk 00:00:53]} {[%emt
00:00:03]} Kg6 {[%clk 00:00:07]} {[%emt 00:00:01]} 36. Rd6+ {[%clk 00:00:53]}
Kf5 {[%clk 00:00:08]} 37. Rd5+ {[%clk 00:00:54]} {[%emt 00:00:01]} Ke4 {[%clk
00:00:09]} {[%emt 00:00:01]} 38. Rd4+ {[%clk 00:00:54]} {[%emt 00:00:02]} Kf5
{[%clk 00:00:10]} {[%emt 00:00:01]} 39. R8d5+ {[%clk 00:00:55]} {[%emt
00:00:02]} Ke6 {[%clk 00:00:11]} 40. Rd6+ {[%clk 00:00:56]} {[%emt 00:00:02]}
Ke5 {[%clk 00:00:11]} {[%emt 00:00:01]} 41. R6d5+ {[%clk 00:00:57]} {[%emt
00:00:01]} Kf6 {[%clk 00:00:07]} {[%emt 00:00:06]} 42. Rd6+ {[%clk 00:00:57]}
{[%emt 00:00:01]} Kg5 {[%clk 00:00:07]} {[%emt 00:00:01]} 43. R6d5+ {[%clk
00:00:58]} {[%emt 00:00:01]} Kf6 {[%clk 00:00:08]} {[%emt 00:00:01]} 44. Rd6+
{[%clk 00:00:59]} {[%emt 00:00:01]} Ke5 {[%clk 00:00:00]} {[%emt 00:00:06]}
1/2-1/2